bitfinex/quotes_ETHUSD_20260203
["timestamp","ask_amount","ask_price","bid_price","bid_amount"]
[1770145921965,13.14740066,2169.2,2166.0,12.23059109]
[1770145922182,0.00692408,2168.7,2166.0,12.23059109]
[1770145922386,0.00692408,2168.7,2165.3,1.61249685]
[1770145922387,0.00692408,2167.5,2165.3,1.61249685]
[1770145922529,12.42339182,2168.6,2166.1,2.12211824]
[1770145922840,0.00692408,2168.4,2166.3,0.2335703]
[1770145923046,0.00692408,2167.3,2165.5,0.968]
[1770145923246,0.00692408,2166.9,2165.5,0.968]
[1770145923448,0.00692408,2167.3,2165.6,1.154383]
[1770145923662,0.00692408,2167.2,2164.8,0.968]
[1770145923834,0.00692408,2167.0,2165.6,1.15438285]
[1770145924155,0.00692424,2166.6,2164.8,0.968]
[1770145924327,12.43031606,2167.3,2164.9,1.15478775]
[1770145924328,0.00692424,2167.1,2164.9,1.15478775]
[1770145924527,0.00692424,2166.8,2165.0,0.67419388]
[1770145924777,0.00692424,2166.7,2165.0,0.67419388]
[1770145924934,0.00692424,2166.6,2165.0,0.67419388]
[1770145925125,0.00692424,2166.6,2164.1,1.15518898]
[1770145925126,0.00692584,2165.9,2164.1,1.15518898]
[1770145925332,0.968,2167.0,2164.8,1.1548259]
[1770145925632,0.97492584,2167.3,2164.9,0.1024]
[1770145925828,12.42339182,2168.2,2165.9,0.1024]
[1770145926160,12.42339182,2169.6,2167.5,0.3359703]
[1770145926337,12.42339182,2169.6,2167.6,0.968]
[1770145926338,0.00692584,2169.2,2167.6,0.968]
[1770145926538,0.00692584,2169.1,2167.6,0.968]
[1770145926858,1.24233918,2169.5,2167.6,0.968]
[1770145927358,0.00692584,2169.0,2167.4,1.15342119]
[1770145927559,0.00692584,2169.0,2167.1,0.968]
[1770145927758,0.00692584,2169.3,2167.5,1.15339929]
[1770145927932,0.00692584,2169.1,2167.1,0.968]
[1770145928136,0.00692584,2169.4,2167.5,1.15336472]
[1770145928460,0.97492584,2170.0,2167.9,0.2335703]
[1770145928660,0.00692584,2169.3,2167.6,0.57669749]
[1770145928962,12.42339182,2169.9,2167.2,0.2335703]
[1770145929139,12.42339182,2169.9,2166.9,0.1024]
[1770145929140,0.00692584,2169.0,2167.4,1.15343469]
[1770145929456,0.00692584,2169.4,2167.4,1.15343469]
[1770145929457,0.00692584,2170.6,2168.1,0.1024]
[1770145929658,0.00692584,2170.5,2168.3,0.2335703]
[1770145929870,1.25134277,2170.6,2168.2,0.968]
[1770145930084,1.24441693,2170.6,2168.4,0.2335703]
[1770145930242,0.00692584,2170.3,2167.4,10.35184576]
[1770145930559,0.00692584,2169.7,2167.2,0.968]
[1770145930759,12.42339182,2170.1,2167.2,0.968]
[1770145930760,1.24441693,2170.6,2168.3,1.1529394]
[1770145930931,1.24441693,2170.6,2168.5,0.2335703]
[1770145930932,0.00692584,2170.4,2168.5,0.2335703]
[1770145931130,0.00692584,2170.6,2168.5,0.2335703]
[1770145931333,0.97492584,2171.3,2168.5,0.2335703]
[1770145931335,12.43031766,2172.1,2169.5,0.2335703]
[1770145931643,0.00692584,2171.5,2169.6,0.968]
[1770145931843,0.00692584,2171.0,2169.6,0.968]
[1770145932030,0.00692584,2170.6,2168.5,0.1024]
[1770145932237,0.968,2171.5,2169.3,1.15244548]
[1770145932459,0.968,2171.5,2169.2,5.57784751]
[1770145932460,0.00692584,2170.8,2169.4,0.6730293]
[1770145932643,0.00692584,2170.9,2169.2,2.12048082]
[1770145932970,0.00692584,2170.8,2169.2,1.15248798]
[1770145933172,12.42339182,2171.2,2169.2,1.15248798]
[1770145933370,0.00692584,2170.9,2168.8,0.2335703]
[1770145933670,0.00692584,2170.5,2168.8,0.967]
[1770145933841,0.00692584,2170.1,2168.8,0.967]
[1770145934033,1.34052435,2171.3,2169.2,1.15247566]
[1770145934232,0.00692584,2170.9,2168.8,0.967]
[1770145934432,0.00692584,2170.6,2168.9,0.40578851]
[1770145934683,0.00692584,2170.6,2168.8,0.967]
[1770145934684,0.00692584,2170.7,2168.8,0.967]
[1770145934971,0.00692584,2170.5,2168.8,1.15269498]
[1770145935279,0.00692584,2170.4,2168.6,0.967]
[1770145935445,12.43031766,2170.7,2168.6,0.967]
[1770145935636,0.00692584,2170.5,2168.6,0.967]
[1770145935838,1.25065019,2170.6,2168.8,1.15270568]
[1770145936066,13.39731766,2171.1,2168.9,0.40585716]
[1770145936269,13.39731766,2171.1,2169.0,1.5596122]
[1770145936566,13.39731766,2171.1,2168.6,5.811415]
[1770145936567,0.00692584,2170.8,2168.6,0.967]
[1770145936755,1.24441693,2170.8,2168.8,0.2335703]
[1770145936956,0.00692584,2171.6,2168.8,0.2335703]
[1770145936957,12.42339182,2172.5,2169.4,0.2335703]
[1770145937156,0.00692584,2172.2,2169.8,0.2335703]
[1770145937337,0.00692584,2172.2,2169.6,1.16846182]
[1770145937338,0.00692584,2172.1,2170.0,0.2335703]
[1770145937538,0.00692584,2172.0,2169.9,0.967]
[1770145937851,0.00692584,2171.6,2169.9,0.967]
[1770145938339,12.42339182,2171.9,2169.9,2.11910558]
[1770145938539,0.17529147,2172.8,2170.4,0.1024]
[1770145938739,0.17529147,2172.8,2170.6,0.2335703]
[1770145938740,0.00692584,2172.4,2170.6,0.2335703]
[1770145938965,0.00692584,2172.4,2170.5,0.93787678]
[1770145938966,0.00692584,2172.5,2170.7,0.93787678]
[1770145939167,10.59272557,2173.7,2171.5,22.58243685]
[1770145939168,0.24087981,2173.7,2171.5,22.58243685]
[1770145939354,0.00692584,2174.3,2171.5,22.58243685]
[1770145939355,12.42339182,2174.7,2172.1,0.1024]
[1770145939678,0.00692584,2176.0,2172.1,0.1024]
[1770145939679,0.00692584,2177.6,2174.8,0.2335703]
[1770145939838,0.00692584,2177.6,2174.7,0.24051146]
[1770145939839,0.00692584,2177.1,2174.7,0.24051146]
[1770145940042,0.00692584,2177.0,2174.7,0.24051146]
[1770145940350,0.00692584,2176.6,2174.8,0.2335703]
[1770145940548,0.00692584,2176.8,2174.9,0.967]
[1770145940751,0.17401267,2177.8,2174.9,0.967]
[1770145940952,0.17401267,2177.8,2174.7,4.83863542]
[1770145940953,0.00692584,2177.0,2174.7,0.24051146]
[1770145941165,0.00692584,2176.9,2174.7,0.24051146]
[1770145941476,0.00692584,2176.2,2174.7,0.24051146]
[1770145941682,0.00692584,2176.3,2174.7,0.24051146]
[1770145941969,0.00692584,2175.8,2174.7,0.24051146]
[1770145942169,0.00919435,2175.6,2174.7,0.24051146]
[1770145942369,0.00919435,2175.0,2172.3,1.16207144]
[1770145942575,0.24054018,2175.7,2172.9,1.15051221]
[1770145942872,0.00919435,2176.6,2173.9,0.2335703]
[1770145943075,0.00919435,2177.1,2174.4,0.1024]
[1770145943280,0.00919435,2176.5,2174.3,0.2335703]
[1770145943576,0.00919435,2176.5,2174.1,10.58541606]
[1770145943577,1.52987484,2177.8,2175.2,0.2335703]
[1770145943739,0.17401267,2177.8,2175.7,10.35184576]
[1770145944082,0.17401267,2177.8,2175.9,0.2335703]
[1770145944290,0.00919435,2177.5,2175.3,1.149224]
[1770145944470,0.17401267,2177.8,2175.8,0.2335703]
[1770145944471,0.18320702,2177.8,2175.8,0.2335703]
[1770145944638,0.18320702,2177.8,2175.5,5.5622219]
[1770145944639,0.17401267,2177.8,2175.5,0.966]
[1770145944839,0.17401267,2177.8,2175.8,0.2335703]
[1770145945043,0.17401267,2177.8,2175.9,0.1024]
[1770145945281,1.20871992,2179.0,2176.6,0.1024]
[1770145945445,12.22286179,2180.6,2177.9,0.2335703]
[1770145945640,0.00919435,2180.1,2178.1,0.2335703]
[1770145945860,0.00919435,2179.7,2177.9,1.06878161]
[1770145946048,0.00919435,2178.8,2176.4,10.35184576]
[1770145946248,1.15663427,2178.8,2176.5,0.966]
[1770145946452,0.00919435,2177.3,2175.4,0.23101656]
[1770145946679,0.00919435,2176.7,2175.2,1.05854161]
[1770145946864,0.00919435,2176.5,2174.6,0.965]
[1770145947086,0.00919435,2176.1,2173.9,0.62514791]
[1770145947376,0.00919435,2176.1,2173.0,12.23965419]
[1770145947377,0.00919435,2175.6,2173.0,0.965]
[1770145947844,12.23205614,2177.0,2174.2,4.59933525]
[1770145948043,12.22286179,2177.0,2174.6,1.14960993]
[1770145948289,12.22286179,2177.0,2174.3,11.11352122]
[1770145948444,0.1024,2176.9,2174.3,0.965]
[1770145948648,0.00919435,2176.3,2173.5,0.965]
[1770145948882,0.00919435,2176.0,2173.5,0.965]
[1770145949084,10.26011557,2176.4,2173.5,0.965]
[1770145949085,0.00919435,2176.8,2173.8,10.14852122]
[1770145949295,0.00919435,2177.2,2173.8,10.14852122]
[1770145949296,12.22286179,2177.7,2174.3,11.29828903]
[1770145949451,0.00919435,2178.4,2174.4,12.23965419]
[1770145949649,0.00919435,2178.4,2175.3,10.14852122]
[1770145949650,0.00919435,2178.3,2175.3,10.14852122]
[1770145949849,0.00919435,2178.3,2175.0,0.2335703]
[1770145949850,0.00919435,2177.7,2175.0,0.2335703]
[1770145950068,12.22286179,2177.8,2175.0,0.2335703]
[1770145950269,0.00919435,2177.4,2175.1,0.965]
[1770145950574,0.00919435,2177.2,2174.9,1.1985703]
[1770145950774,0.00919435,2177.2,2174.9,0.965]
[1770145950775,0.00919435,2176.8,2174.9,0.965]
[1770145951118,0.00919435,2176.3,2174.9,0.965]
[1770145951592,0.00919435,2176.3,2174.0,1.14992053]
[1770145951593,0.00919435,2175.7,2174.0,1.14992053]
[1770145951797,0.00919435,2175.4,2173.6,0.965]
[1770145952005,0.00919435,2175.2,2173.6,0.965]
[1770145952494,0.00919435,2175.5,2173.6,2.11516267]
[1770145952704,0.1024,2176.9,2173.7,0.77398621]
[1770145952888,0.00919435,2177.1,2174.3,0.2335703]
[1770145952889,0.00919435,2176.5,2174.3,0.2335703]
[1770145953066,0.00919435,2176.8,2174.3,0.2335703]
[1770145953269,0.00919435,2176.7,2174.8,0.2335703]
[1770145953471,0.00919435,2176.7,2174.2,10.14852122]
[1770145953472,0.00919435,2178.3,2175.3,0.3359703]
[1770145953709,0.00919435,2177.4,2175.3,2.24701945]
[1770145953999,10.15771557,2177.4,2175.3,1.04844915]
[1770145954179,0.00919435,2177.0,2174.6,0.2335703]
[1770145954374,0.00919435,2177.0,2174.0,22.38817541]
[1770145954375,0.00919435,2176.4,2174.0,1.14991809]
[1770145954574,0.965,2176.4,2173.6,1.15015282]
[1770145954774,0.965,2176.4,2173.5,0.965]
[1770145954977,0.965,2176.4,2174.4,1.14973447]
[1770145955176,12.23205614,2177.3,2174.4,1.14973447]
[1770145955388,12.22286179,2177.3,2174.6,0.2335703]
[1770145955597,12.22286179,2177.3,2174.5,0.1024]
[1770145955598,0.00919435,2177.0,2174.7,0.965]
[1770145955768,0.00919435,2176.9,2174.7,0.965]
[1770145955973,12.22286179,2177.3,2174.8,0.2335703]
[1770145956167,0.00919435,2177.1,2174.8,1.36827945]
[1770145956401,0.00919435,2177.0,2174.7,0.965]
[1770145956604,1.22228618,2177.2,2174.8,1.14949145]
[1770145956805,1.22228618,2177.2,2174.3,13.61937862]
[1770145956806,12.22286179,2178.1,2174.9,1.14947813]
[1770145956807,0.00919435,2176.8,2174.9,1.14947813]
[1770145957006,0.00919435,2176.8,2174.3,12.23965419]
[1770145957007,0.00919435,2176.7,2174.8,1.14952516]
[1770145957175,0.00919435,2177.2,2174.8,1.14952516]
[1770145957176,0.97419435,2178.2,2175.2,10.14852122]
[1770145957373,0.00919435,2177.9,2175.8,0.3359703]
[1770145957571,0.00919435,2179.0,2176.3,0.3359703]
[1770145957793,0.00919435,2178.7,2176.3,0.3359703]
[1770145957995,0.00919435,2178.7,2175.9,13.20365419]
[1770145957996,0.00919435,2178.5,2175.9,12.23965419]
[1770145958195,0.00919435,2177.9,2176.0,1.22396542]
[1770145958375,12.22286179,2179.1,2176.0,0.1024]
[1770145958592,0.00919435,2178.5,2176.1,0.2335703]
[1770145958793,0.00919435,2178.5,2175.7,16.83545362]
[1770145958794,0.00919435,2178.2,2175.3,1.01485212]
[1770145959093,0.00919435,2177.8,2175.8,1.14899188]
[1770145959297,0.00919435,2177.6,2175.9,0.2335703]
[1770145959528,0.00919435,2178.0,2175.9,0.2335703]
[1770145959529,0.00919435,2178.5,2175.9,0.2335703]
[1770145959832,0.00919435,2178.0,2175.9,0.2335703]
[1770145959981,0.00919435,2178.9,2175.9,0.2335703]
[1770145959982,0.00919435,2178.7,2176.2,0.2335703]
[1770145960322,0.00919435,2178.4,2176.2,0.3359703]
[1770145960496,0.00919435,2179.7,2176.9,0.2335703]
[1770145960684,0.00919435,2179.0,2177.0,0.964]
[1770145960884,0.00919435,2178.7,2177.1,0.2335703]
[1770145961192,0.00919435,2178.8,2177.1,0.2335703]
[1770145961514,0.00919435,2179.1,2177.0,0.964]
[1770145961699,0.00919435,2179.6,2177.1,0.2335703]
[1770145961888,0.00919435,2181.1,2178.5,10.14852122]
[1770145962093,0.00919435,2181.5,2178.5,10.14852122]
[1770145962094,0.00919435,2181.4,2178.7,0.3359703]
[1770145962291,0.00919435,2181.4,2178.6,1.97885212]
[1770145962292,0.00919435,2181.5,2179.1,10.14852122]
[1770145962599,0.00919435,2179.3,2177.0,1.13461559]
[1770145962821,0.00919435,2179.4,2177.5,0.964]
[1770145963031,0.00919435,2179.1,2177.5,0.964]
[1770145963326,0.00919435,2179.4,2177.5,0.964]
[1770145963500,0.00919435,2178.9,2177.5,0.964]
[1770145963819,0.00919435,2178.4,2177.1,2.02934381]
[1770145964132,0.00919435,2178.3,2176.8,0.964]
[1770145964290,0.00919435,2178.2,2176.8,0.964]
[1770145964617,0.00919435,2178.3,2176.8,0.964]
[1770145964834,0.00919435,2178.4,2176.8,2.1124336]
[1770145964989,0.00919435,2179.1,2176.8,2.1124336]
[1770145964990,0.00919435,2180.1,2177.5,0.1024]
[1770145965189,0.00919435,2179.8,2177.5,1.02509212]
[1770145965511,0.00919435,2179.9,2177.7,0.2335703]
[1770145965728,0.00919435,2179.9,2177.8,0.964]
[1770145965910,0.00919435,2179.9,2177.2,0.2335703]
[1770145965911,0.00919435,2179.3,2177.2,0.2335703]
[1770145966114,0.00919435,2178.8,2176.8,1.14844481]
[1770145966312,0.00919435,2179.0,2176.9,0.40203728]
[1770145966525,0.00919435,2178.8,2176.9,1.76284739]
[1770145966730,0.00919435,2179.5,2177.2,10.14852122]
[1770145967030,0.00919435,2179.5,2177.3,0.2335703]
[1770145967031,0.00919435,2179.3,2177.3,0.2335703]
[1770145967239,0.00919435,2179.8,2177.5,0.2335703]
[1770145967524,0.00919435,2179.5,2177.6,0.964]
[1770145967734,0.00919435,2179.4,2177.6,0.964]
[1770145967937,0.00919435,2179.8,2177.6,0.964]
[1770145967938,0.00919435,2180.9,2178.3,0.2335703]
[1770145968091,0.00919435,2181.1,2178.4,1.43480612]
[1770145968430,0.00919435,2181.1,2178.3,1.27177945]
[1770145968431,4.59219201,2182.0,2178.3,1.27177945]
[1770145968432,0.1372537,2182.6,2180.8,1.1463683]
[1770145968602,0.1372537,2182.6,2179.6,12.83693087]
[1770145968603,1.28269038,2182.6,2180.9,0.963]
[1770145968802,1.28269038,2182.6,2179.9,2.30215993]
[1770145968803,0.00919435,2181.1,2180.6,0.963]
[1770145969016,0.00919435,2180.1,2179.4,1.13461559]
[1770145969211,0.00919435,2180.1,2179.0,0.963]
[1770145969212,0.006879,2179.5,2179.0,0.963]
[1770145969412,0.006879,2180.0,2179.0,0.963]
[1770145969413,0.006879,2180.1,2179.1,1.3366762]
[1770145969740,0.006879,2181.2,2179.2,1.33647801]
[1770145969893,0.006879,2180.2,2179.0,1.14728992]
[1770145970096,0.00688199,2179.6,2178.7,0.963]
[1770145970292,0.00688199,2179.6,2177.8,1.14794746]
[1770145970293,0.00688199,2179.0,2177.8,1.14794746]
[1770145970528,0.00688199,2180.2,2177.9,3.62186974]
[1770145970702,0.00688199,2180.1,2178.0,3.32902509]
[1770145970905,0.00688199,2180.5,2178.0,3.32902509]
[1770145970906,0.00688199,2181.7,2179.1,1.23701559]
[1770145971216,0.00688199,2181.7,2179.7,1.13461559]
[1770145971419,0.00688199,2181.1,2179.2,0.963]
[1770145971728,0.00688199,2181.9,2179.3,0.2335703]
[1770145971913,1.2205473,2181.7,2179.4,0.93262692]
[1770145972115,1.2205473,2181.7,2179.3,0.40470199]
[1770145972116,21.9158,2184.0,2180.3,1.87957297]
[1770145972319,0.00688199,2184.9,2184.5,0.23939537]
[1770145972517,0.00688199,2185.1,2184.5,1.38381544]
[1770145972757,22.2714103,2186.7,2184.5,0.08123563]
[1770145973198,12.12288908,2186.7,2184.5,0.08123563]
[1770145973398,12.12288908,2186.3,2184.5,0.08123563]
[1770145973619,12.34624818,2187.2,2184.5,0.08123563]
[1770145973827,12.34624818,2186.9,2184.5,0.08123563]
[1770145974037,10.28577492,2187.0,2184.5,0.08123563]
[1770145974038,12.34624818,2186.7,2184.5,0.08123563]
[1770145974340,12.34624818,2186.5,2184.5,0.01010337]
[1770145974634,1.14348442,2186.3,2184.5,0.01010337]
[1770145974931,1.14348442,2186.3,2184.0,0.23961175]
[1770145974932,10.14852122,2185.4,2184.0,0.23961175]
[1770145975107,12.34624818,2186.1,2184.0,0.23961175]
[1770145975307,12.34624818,2186.3,2184.0,0.23961175]
[1770145975831,10.14852122,2185.8,2184.0,0.23961175]
[1770145976041,12.44864818,2186.2,2184.0,0.23961175]
[1770145976423,0.1024,2185.3,2182.5,1.14544008]
[1770145976603,10.14852122,2184.8,2182.0,0.962]
[1770145976803,13.4635003,2184.7,2182.0,0.962]
[1770145977046,13.4635003,2184.7,2181.3,10.14852122]
[1770145977376,13.4635003,2184.7,2181.5,13.8237054]
[1770145977377,0.1024,2184.6,2181.5,13.8237054]
[1770145977551,0.962,2185.1,2182.5,1.14546502]
[1770145977710,0.962,2185.1,2182.6,0.57273665]
[1770145977711,0.1024,2185.0,2182.6,0.57273665]
[1770145978025,12.44864818,2184.6,2181.0,1.14625881]
[1770145978199,12.44864818,2184.6,2181.3,4.58431675]
[1770145978200,12.34624818,2184.6,2181.3,4.58431675]
[1770145978405,0.1024,2184.2,2180.8,10.14852122]
[1770145978723,0.1024,2184.0,2181.3,1.14606445]
[1770145978926,0.1024,2184.0,2180.6,10.14852122]
[1770145978927,0.1024,2183.4,2180.6,10.14852122]
[1770145979124,0.1024,2183.4,2180.8,4.58543888]
[1770145979125,0.962,2183.3,2180.8,4.58543888]
[1770145979325,10.14852122,2182.9,2179.9,1.14681177]
[1770145979526,0.962,2183.2,2179.8,4.58750229]
[1770145979527,10.14852122,2182.4,2179.8,4.58750229]
[1770145979732,1.97685212,2182.3,2180.0,1.14677435]
[1770145979929,11.11052122,2182.3,2179.6,1.14698846]
[1770145980130,23.4567694,2182.3,2179.0,0.962]
[1770145980308,23.4567694,2182.3,2179.3,1.14715668]
[1770145980309,0.1024,2181.7,2179.3,1.14715668]
[1770145980504,0.1024,2181.7,2178.3,1.14768362]
[1770145980505,0.1024,2181.2,2178.3,1.14768362]
[1770145980705,0.962,2181.1,2178.0,1.98965288]
[1770145981013,10.14852122,2181.5,2178.0,1.98965288]
[1770145981014,11.47934604,2181.0,2179.0,1.14730317]
[1770145981219,10.14852122,2181.1,2178.8,1.14737279]
[1770145981434,10.14852122,2181.6,2179.0,1.14731479]
[1770145981661,10.14852122,2182.1,2178.1,2.36156726]
[1770145981662,12.34624818,2181.3,2178.1,2.36156726]
[1770145981959,10.14852122,2180.9,2178.2,1.82390706]
[1770145982160,10.14852122,2180.4,2178.2,0.67620524]
[1770145982450,10.14852122,2180.4,2176.9,10.14852122]
[1770145982451,10.14852122,2180.4,2177.1,4.59316288]
[1770145982629,0.962,2180.3,2177.4,10.14852122]
[1770145982822,0.962,2180.3,2177.1,4.59316288]
[1770145983021,10.14852122,2180.0,2177.1,1.14831656]
[1770145983236,10.14852122,2180.0,2176.8,0.962]
[1770145983237,10.14852122,2179.5,2176.8,0.962]
[1770145983451,10.14852122,2179.0,2175.9,1.14890661]
[1770145983654,13.4635003,2179.4,2175.4,12.4485171]
[1770145983655,10.14852122,2178.5,2175.6,1.14908932]
[1770145983860,0.962,2178.9,2174.9,5.73820989]
[1770145983861,10.14852122,2177.5,2174.9,1.14944886]
[1770145984155,1.97685212,2177.4,2174.5,12.4485171]
[1770145984465,14.3231003,2177.4,2174.3,4.60011915]
[1770145984632,13.3611003,2177.4,2174.3,4.60011915]
[1770145984949,2.16301788,2177.4,2174.7,10.14852122]
[1770145985165,11.29657552,2177.6,2174.8,1.01485212]
[1770145985322,4.59130389,2178.1,2174.8,1.01485212]
[1770145985323,0.962,2177.5,2174.8,1.01485212]
[1770145985523,0.962,2177.5,2174.8,0.96908212]
[1770145985730,22.4947694,2177.6,2174.3,4.60011915]
[1770145985956,1.37724617,2178.3,2174.3,4.60011915]
[1770145985957,1.01485212,2179.4,2176.4,10.14852122]
[1770145986282,1.01485212,2179.4,2174.4,2.17948852]
[1770145986283,10.14852122,2178.8,2175.9,12.4485171]
[1770145986423,0.00689322,2177.7,2175.0,2.12088906]
[1770145986628,0.00689322,2178.1,2176.0,1.14888868]
[1770145986844,0.00689322,2177.6,2175.4,0.2335703]
[1770145987127,0.00689322,2176.7,2175.0,0.962]
[1770145987323,0.00689322,2176.7,2175.3,1.14923165]
[1770145987527,0.00689322,2176.9,2175.0,0.962]
[1770145987841,0.00689322,2177.0,2175.0,0.962]
[1770145987842,0.00689322,2177.1,2175.6,1.14910407]
[1770145988150,0.00689322,2177.9,2175.1,0.1024]
[1770145988151,0.00689322,2178.1,2175.3,10.14852122]
[1770145988355,0.00689322,2176.9,2175.4,1.01485212]
[1770145988555,0.00689322,2176.9,2175.1,1.14932631]
[1770145988556,0.00689322,2176.8,2175.0,13.59790461]
[1770145988727,0.00689322,2176.8,2175.1,0.2335703]
[1770145989022,0.00689322,2176.2,2174.8,0.963]
[1770145989222,0.00689354,2176.4,2174.8,0.963]
[1770145989462,0.00689354,2176.4,2174.9,1.1494625]
[1770145989663,0.00689354,2176.2,2174.9,0.001]
[1770145989958,0.00689354,2176.0,2174.9,0.001]
[1770145990735,0.00689512,2175.9,2174.9,0.001]
[1770145991443,0.00689354,2176.0,2174.9,0.001]
[1770145991625,0.00689528,2175.9,2174.9,0.001]
[1770145991826,0.00689528,2175.8,2174.9,0.001]
[1770145992056,0.00689544,2176.4,2174.9,0.001]
[1770145992258,0.00689544,2175.9,2174.9,0.001]
[1770145992442,0.00689544,2175.6,2174.9,0.001]
[1770145992626,0.00689544,2175.8,2174.9,0.001]
[1770145992828,0.00689544,2175.7,2174.9,0.001]
[1770145993156,0.00919413,2175.4,2174.3,0.001]
[1770145993322,0.00919413,2175.5,2174.3,0.001]
[1770145993728,0.00919413,2175.7,2174.3,0.001]
[1770145994127,0.00919413,2176.2,2174.3,0.001]
[1770145994530,0.00919413,2175.8,2174.3,0.001]
[1770145995137,0.00919413,2175.3,2174.3,0.001]
[1770145995361,0.00919413,2175.1,2174.3,0.001]
[1770145995560,0.00919413,2175.4,2174.3,0.001]
[1770145995732,0.00919413,2175.3,2174.3,0.001]
[1770145996143,0.00919413,2175.5,2174.3,0.001]
[1770145996349,0.00919413,2176.0,2174.3,0.001]
[1770145996653,0.00919413,2176.3,2174.3,0.001]
[1770145996654,0.00919413,2177.2,2175.2,0.2335703]
[1770145996854,0.00919413,2178.3,2175.8,0.2335703]
[1770145997052,0.00919413,2178.3,2176.4,0.2335703]
[1770145997274,0.00919413,2178.3,2176.6,0.2335703]
[1770145997444,0.00919413,2177.5,2175.4,0.3359703]
[1770145997772,0.00919413,2177.6,2175.8,0.2335703]
[1770145998077,0.00919413,2177.7,2175.8,0.2335703]
[1770145998276,0.00919413,2177.5,2175.7,0.963]
[1770145998451,0.00919413,2177.5,2175.8,0.2335703]
[1770145998780,0.00919413,2178.4,2176.1,0.1024]
[1770145998968,0.00919413,2179.3,2176.9,0.2335703]
[1770145999274,0.00919413,2179.1,2177.1,0.2335703]
[1770145999474,0.00919413,2179.0,2177.1,0.2335703]
[1770145999685,0.00919413,2179.0,2176.3,12.4485171]
[1770145999686,0.00919413,2178.2,2176.3,12.4485171]
[1770145999856,0.00919413,2177.9,2176.4,1.24485171]
[1770146000058,0.00919413,2177.9,2175.8,2.1119915]
[1770146000267,0.00919413,2178.3,2175.8,14.5605086]
[1770146000467,0.01029413,2179.4,2176.7,10.14852122]
[1770146000654,0.01029413,2179.4,2177.0,0.3359703]
[1770146000655,0.0011,2179.4,2177.0,0.3359703]
[1770146000856,0.01029413,2179.4,2177.0,0.3359703]
[1770146001053,0.00919413,2179.1,2177.0,0.2335703]
[1770146001293,0.00919413,2179.0,2177.0,0.2335703]
[1770146001458,0.00919413,2179.0,2176.8,16.40955356]
[1770146001459,0.00919413,2178.8,2176.9,0.2335703]
[1770146001645,0.00919413,2178.8,2176.9,1.15184433]
[1770146001847,0.01029413,2179.4,2176.9,1.15184433]
[1770146002282,0.00919413,2179.2,2176.9,1.15184433]
[1770146002489,0.0011,2179.4,2177.8,0.3359703]
[1770146002782,0.00919413,2180.8,2178.3,0.3359703]
[1770146002990,0.00919413,2180.7,2178.3,0.3359703]
[1770146003188,16.36632452,2181.5,2179.2,0.2335703]
[1770146003189,0.00919413,2181.5,2179.2,0.2335703]
[1770146003485,0.00919413,2181.5,2179.4,0.2335703]
[1770146003783,0.00919413,2182.1,2179.4,0.2335703]
[1770146003784,0.00919413,2182.3,2180.0,0.2335703]
[1770146003991,0.00919413,2182.9,2179.4,0.1024]
[1770146003992,0.00919413,2182.0,2179.4,0.1024]
[1770146004186,0.00919413,2182.0,2179.5,0.963]
[1770146004187,0.00919413,2181.4,2179.5,0.963]
[1770146004488,0.00919413,2181.8,2179.6,0.3359703]
[1770146004816,0.00919413,2180.3,2178.4,0.1024]
[1770146004957,0.00919413,2180.9,2178.4,0.1024]
[1770146004958,1.15531513,2181.3,2178.6,0.1024]
[1770146005281,0.00919413,2181.9,2178.6,0.1024]
[1770146005282,11.77308607,2182.5,2179.6,0.1024]
[1770146005482,0.00919413,2182.1,2179.8,0.3359703]
[1770146005659,0.00919413,2181.7,2179.8,1.14474915]
[1770146005865,0.00919413,2180.9,2178.5,12.05444502]
[1770146006062,0.00919413,2180.6,2179.0,0.963]
[1770146006253,0.00919413,2180.4,2179.0,0.963]
[1770146006455,0.00919413,2180.4,2177.1,1.15888906]
[1770146006456,0.00919413,2179.4,2177.1,1.15888906]
[1770146006683,0.00919413,2179.6,2177.5,0.963]
[1770146006897,0.00919413,2180.8,2177.6,12.45717833]
[1770146007059,0.00919413,2180.5,2177.7,13.38567193]
[1770146007253,0.00919413,2180.5,2177.8,0.92839552]
[1770146007254,0.00919413,2180.2,2177.8,0.92839552]
[1770146007560,0.00919413,2180.2,2177.9,1.41417296]
[1770146008192,0.00919413,2180.6,2178.2,0.1024]
[1770146008398,0.00919413,2181.4,2178.7,1.39245936]
[1770146008690,10.14062336,2181.6,2178.6,11.77978399]
[1770146008691,0.00919413,2181.5,2179.3,0.2335703]
[1770146008852,0.00919413,2181.4,2179.4,0.963]
[1770146009059,0.00919413,2181.6,2179.5,0.2335703]
[1770146009288,0.00919413,2181.8,2179.7,0.2335703]
[1770146009477,0.00919413,2182.0,2179.7,0.2335703]
[1770146009691,23.0837,2183.9,2180.1,10.36499953]
[1770146009875,11.77308607,2184.2,2181.2,1.49485936]
[1770146009876,0.00919413,2183.3,2181.2,1.49485936]
[1770146010069,0.00919413,2183.3,2181.3,0.963]
[1770146010070,0.00919413,2182.7,2181.3,0.963]
[1770146010395,0.00919413,2183.9,2181.4,0.963]
[1770146010579,11.77308607,2185.9,2181.8,0.2335703]
[1770146010759,1.14336143,2186.6,2183.0,0.1024]
[1770146010958,16.34600882,2186.8,2183.6,0.2335703]
[1770146010959,11.77308607,2186.8,2183.6,0.2335703]
[1770146011194,12.91632503,2186.8,2184.0,0.1024]
[1770146011358,0.00919413,2186.9,2184.2,0.2335703]
[1770146011559,0.14644783,2187.0,2184.2,0.2335703]
[1770146011806,0.14644783,2187.0,2184.1,0.963]
[1770146011963,0.00919413,2185.8,2184.1,0.963]
[1770146012162,0.00919413,2185.6,2184.1,0.963]
[1770146012409,0.00919413,2186.9,2184.2,0.3359703]
[1770146012560,0.14644783,2187.0,2184.4,0.3359703]
[1770146012561,0.1372537,2187.0,2184.4,0.3359703]
[1770146012760,0.1372537,2187.0,2184.6,12.39041532]
[1770146012992,0.1372537,2187.0,2184.5,1.14442664]
[1770146012993,0.1372537,2187.0,2184.8,12.39041532]
[1770146013197,0.00919413,2188.6,2185.1,12.05444502]
[1770146013380,0.01789383,2189.0,2185.7,13.70279978]
[1770146013381,0.0086997,2189.0,2185.7,13.70279978]
[1770146013580,0.0086997,2189.0,2186.6,0.2335703]
[1770146013783,0.0086997,2189.0,2187.1,0.2335703]
[1770146013982,0.0086997,2189.0,2186.7,0.962]
[1770146013983,0.0086997,2189.0,2187.3,0.2335703]
[1770146014158,0.0086997,2189.0,2186.2,1.54595476]
[1770146014159,0.00919413,2188.4,2186.6,0.962]
[1770146014363,0.00919413,2187.3,2184.7,13.40792922]
[1770146014562,0.00919413,2187.7,2184.7,13.40792922]